bitfinex/quotes_SOLUSD_20250421
["timestamp","ask_amount","ask_price","bid_price","bid_amount"]
[1745230827964,87.95717148,139.72,139.7,0.063]
[1745230840096,7.15717148,139.72,139.7,0.063]
[1745230841084,7.15665927,139.73,139.7,0.063]
[1745230843993,7.15635514,139.74,139.71,6.4343]
[1745230847175,7.15512306,139.76,139.73,26.0]
[1745230847423,80.863,139.78,139.74,26.0]
[1745230847424,7.21733523,139.78,139.74,26.0]
[1745230847604,0.063,139.78,139.74,26.0]
[1745230848081,0.063,139.78,139.77,26.0]
[1745230849398,0.063,139.78,139.75,6.4343]
[1745230849602,0.063,139.78,139.77,26.0]
[1745230864220,0.063,139.78,139.73,1.5848]
[1745230864521,0.063,139.78,139.74,26.0]
[1745230866923,7.21709929,139.78,139.74,26.0]
[1745230874128,0.063,139.78,139.74,26.71561318]
[1745230876535,0.063,139.78,139.76,26.0]
[1745230894819,0.063,139.78,139.76,26.71550173]
[1745230895028,0.063,139.78,139.77,26.0]
[1745230895939,0.063,139.78,139.75,26.0]
[1745230901558,18.85481043,139.78,139.73,14.08]
[1745230901736,99.65481043,139.78,139.73,14.08]
[1745230902149,99.65481043,139.78,139.71,32.2347]
[1745230902648,7.15461114,139.77,139.71,32.2347]
[1745230902824,7.15461114,139.77,139.71,26.0]
[1745230905139,7.15461114,139.77,139.74,26.0]
[1745230905654,7.15461114,139.77,139.72,26.0]
[1745230914974,7.2976229,139.76,139.72,26.0]
[1745230915256,7.15546133,139.76,139.72,26.0]
[1745230921157,18.79181043,139.77,139.72,26.0]
[1745230921961,25.94648875,139.77,139.72,26.0]
[1745230928856,18.79181043,139.77,139.72,26.0]
[1745230929772,18.79181043,139.77,139.72,29.57857059]
[1745230929986,25.94643088,139.77,139.72,26.0]
[1745230931874,18.79181043,139.77,139.72,29.57858375]
[1745230932172,80.863,139.78,139.72,29.57858375]
[1745230933668,88.01713717,139.78,139.72,29.57858375]
[1745230944380,80.863,139.78,139.72,29.57858375]
[1745230944692,0.063,139.78,139.76,26.0]
[1745230944896,25.86443732,139.83,139.76,40.08]
[1745230945184,0.063,139.83,139.76,40.08]
[1745230945681,0.063,139.83,139.77,3.57730557]
[1745230946057,0.063,139.83,139.81,26.0]
[1745230947274,0.063,139.83,139.81,31.66868832]
[1745230947574,0.063,139.83,139.81,26.0]
[1745230950180,0.063,139.83,139.76,14.08]
[1745230950355,0.063,139.83,139.79,26.0]
[1745230952169,0.063,139.83,139.79,29.57678029]
[1745230955585,0.063,139.83,139.79,33.07017549]
[1745230956479,0.063,139.83,139.79,29.57678029]
[1745230957858,0.063,139.83,139.81,26.0]
[1745230959864,0.063,139.83,139.81,29.57627996]
[1745230960274,0.063,139.83,139.81,26.0]
[1745230960466,0.063,139.83,139.82,26.0]
[1745230971597,0.063,139.83,139.78,19.6697051]
[1745230971894,0.063,139.83,139.78,14.06]
[1745230972089,0.063,139.83,139.78,40.06]
[1745230973306,18.79181043,139.82,139.78,40.06]
[1745230973707,18.79181043,139.82,139.78,26.0]
[1745230974406,99.59181043,139.82,139.75,1.6212]
[1745230974708,80.8,139.81,139.76,26.0]
[1745230976309,18.79181043,139.79,139.76,26.0]
[1745230976507,18.79181043,139.79,139.77,26.0]
[1745230978808,25.94552974,139.79,139.75,27.6212]
[1745230979510,80.8,139.81,139.77,26.0]
[1745230980295,87.9527263,139.81,139.77,26.0]
[1745230981212,80.8,139.81,139.77,26.0]
[1745230981594,25.94386411,139.82,139.77,26.0]
[1745230982017,25.80170254,139.82,139.77,26.0]
[1745230983905,0.14216157,139.81,139.77,26.0]
[1745230985602,7.29482897,139.81,139.77,26.0]
[1745230987817,7.1532711,139.8,139.75,1.6212]
[1745230988015,7.1532711,139.8,139.77,26.0]
[1745230989523,18.64964886,139.8,139.77,26.0]
[1745230996833,7.15316244,139.8,139.77,26.0]
[1745230997328,99.59181043,139.79,139.71,1.5338]
[1745230997710,7.15409929,139.78,139.73,26.0]
[1745231005641,7.29710971,139.77,139.72,26.03]
[1745231006128,7.29710971,139.77,139.74,26.0]
[1745231006931,7.29710971,139.77,139.72,0.03]
[1745231007133,18.79181043,139.75,139.72,26.03]
[1745231007341,18.79181043,139.75,139.72,0.03]
[1745231007833,18.79181043,139.73,139.72,0.03]
[1745231009632,0.14216157,139.73,139.72,0.03]
[1745231009838,18.79181043,139.73,139.72,0.03]
[1745231010219,0.14216157,139.73,139.72,0.03]
[1745231010416,18.79181043,139.73,139.72,0.03]
[1745231012832,7.29882084,139.73,139.72,0.03]
[1745231014844,25.9484697,139.73,139.72,0.03]
[1745231016546,47.3984697,139.73,139.72,0.03]
[1745231021145,48.9129697,139.73,139.72,0.03]
[1745231023154,25.9484697,139.73,139.72,0.03]
[1745231034559,18.64964886,139.73,139.72,0.03]
[1745231035147,18.79181043,139.73,139.72,0.03]
[1745231036042,18.64964886,139.73,139.72,0.03]
[1745231036353,18.79181043,139.73,139.72,0.03]
[1745231044466,25.9484697,139.73,139.72,0.03]
[1745231061470,47.3984697,139.73,139.72,0.03]
[1745231073978,73.3984697,139.73,139.72,0.03]
[1745231077975,47.3984697,139.73,139.72,0.03]
[1745231091193,47.25630813,139.73,139.72,0.03]
[1745231091899,47.3984697,139.73,139.72,0.03]
[1745231092081,47.25630813,139.73,139.72,0.03]
[1745231092282,47.3984697,139.73,139.72,0.03]
[1745231103813,18.64964886,139.73,139.72,0.03]
[1745231104308,25.9484697,139.73,139.72,0.03]
[1745231105013,18.64964886,139.73,139.72,0.03]
[1745231105515,18.79181043,139.73,139.72,0.03]
[1745231106718,25.9484697,139.73,139.72,0.03]
[1745231110713,47.3984697,139.73,139.72,0.03]
[1745231129035,47.3984697,139.73,139.71,0.03]
[1745231129236,18.79181043,139.7,139.69,0.063]
[1745231129436,40.24181043,139.7,139.69,0.063]
[1745231131342,47.40000656,139.7,139.69,0.063]
[1745231139139,47.40000656,139.7,139.68,1e-08]
[1745231139140,41.24181043,139.69,139.68,1e-08]
[1745231141442,48.40051899,139.69,139.68,1e-08]
[1745231141651,74.40051899,139.69,139.68,1e-08]
[1745231142147,44.79181043,139.67,139.63,8.2125]
[1745231142350,67.24181043,139.67,139.63,8.2125]
[1745231144050,47.40205674,139.66,139.63,8.2125]
[1745231150646,47.25989517,139.66,139.63,8.2125]
[1745231151359,47.40205674,139.66,139.63,8.2125]
[1745231152260,18.64964886,139.66,139.63,8.2125]
[1745231152556,25.95205674,139.66,139.63,8.2125]
[1745231155441,47.43205674,139.66,139.63,8.2125]
[1745231160058,47.43205674,139.66,139.62,0.03]
[1745231166540,47.43205674,139.66,139.65,1e-08]
[1745231167263,40.27181043,139.65,139.64,1e-08]
[1745231167665,41.27181043,139.65,139.64,1e-08]
[1745231168246,47.43256947,139.65,139.64,1e-08]
[1745231168454,48.43256947,139.65,139.64,1e-08]
[1745231169160,80.43446707,139.65,139.62,0.03]
[1745231170874,79.43446707,139.65,139.62,0.03]
[1745231171165,80.43446707,139.65,139.62,0.03]
[1745231172446,26.0,139.6,139.59,0.03]
[1745231172648,26.0,139.6,139.53,7.8063]
[1745231172649,121.07181043,139.59,139.53,7.8063]
[1745231173872,128.23564738,139.59,139.53,7.8063]
[1745231174948,99.44964886,139.59,139.58,7.8363]
[1745231175349,99.59181043,139.59,139.58,7.8363]
[1745231177261,106.75564738,139.59,139.58,7.8363]
[1745231180768,106.75564738,139.59,139.58,0.03]
[1745231183754,25.95564738,139.59,139.58,0.03]
[1745231184156,18.79181043,139.59,139.58,0.03]
[1745231184357,25.95564738,139.59,139.58,0.03]
[1745231184782,25.81348581,139.59,139.58,0.03]
[1745231185383,25.95564738,139.59,139.58,0.03]
[1745231186657,18.79181043,139.59,139.58,0.03]
[1745231188658,25.95564738,139.59,139.58,0.03]
[1745231192290,47.43564738,139.59,139.58,1e-08]
[1745231195576,0.14216157,139.55,139.54,0.03]
[1745231197283,33.30805193,139.55,139.54,1e-08]
[1745231197475,0.14216157,139.53,139.52,0.03]
[1745231199268,25.95872793,139.53,139.52,0.03]
[1745231200212,25.95872793,139.53,139.51,0.03]
[1745231200494,18.79181043,139.52,139.51,1e-08]
[1745231200688,18.79181043,139.52,139.5,1e-08]
[1745231200689,0.14216157,139.51,139.5,1e-08]
[1745231201302,0.14216157,139.51,139.44,0.03]
[1745231201303,25.96078311,139.49,139.44,0.03]
[1745231201465,0.14216157,139.46,139.44,0.03]
[1745231202787,0.14216157,139.46,139.45,0.03]
[1745231203386,18.79181043,139.46,139.45,0.03]
[1745231204800,25.96232527,139.46,139.45,0.03]
[1745231209875,18.79181043,139.46,139.45,0.03]
[1745231210072,18.64964886,139.46,139.45,0.03]
[1745231210497,18.79181043,139.46,139.45,0.03]
[1745231211977,18.64964886,139.46,139.45,0.03]
[1745231212174,87.96844145,139.51,139.45,1.6178]
[1745231212396,18.64964886,139.49,139.45,1.6178]
[1745231212709,0.14216157,139.48,139.45,1.6178]
[1745231213007,18.64964886,139.49,139.45,1.6178]
[1745231213304,0.14216157,139.48,139.45,1.6178]
[1745231213903,18.64964886,139.49,139.47,26.0]
[1745231214318,80.8,139.5,139.47,26.0]
[1745231214806,80.8,139.5,139.48,7.16948666]
[1745231214994,99.44964886,139.5,139.49,6.0356]
[1745231215305,99.59181043,139.5,139.49,6.0356]
[1745231216597,80.8,139.5,139.49,7.6234]
[1745231216798,80.8,139.5,139.49,14.79237268]
[1745231217007,18.64964886,139.54,139.49,14.79237268]
[1745231217401,0.14216157,139.53,139.49,14.79237268]
[1745231218482,0.14216157,139.53,139.49,7.6234]
[1745231219906,0.14216157,139.53,139.49,14.79236022]
[1745231223107,0.14216157,139.53,139.49,7.6234]
[1745231223491,7.3091171,139.53,139.49,7.6234]
[1745231223701,0.14216157,139.53,139.49,7.6234]
[1745231224706,0.14216157,139.53,139.49,14.79214871]
[1745231225488,18.64964886,139.54,139.49,14.79214871]
[1745231225794,18.64964886,139.54,139.49,32.71458042]
[1745231226824,18.64964886,139.54,139.51,7.16794495]
[1745231227910,18.64964886,139.54,139.5,33.16822017]
[1745231229597,18.64964886,139.54,139.49,7.6234]
[1745231229598,0.14216157,139.53,139.49,7.6234]
[1745231229798,0.14216157,139.53,139.49,1.5878]
[1745231231522,7.309486,139.53,139.49,1.5878]
[1745231231722,7.309486,139.53,139.49,27.5878]
[1745231233219,0.14216157,139.52,139.49,34.75676121]
[1745231234124,0.14216157,139.52,139.49,27.5878]
[1745231237306,18.64964886,139.51,139.49,26.0]
[1745231239236,0.14216157,139.51,139.49,26.0]
[1745231239531,0.14216157,139.53,139.5,1.6193]
[1745231239910,18.64964886,139.54,139.5,1.6193]
[1745231240318,0.14216157,139.53,139.5,1.6193]
[1745231240933,0.14216157,139.53,139.49,26.0]
[1745231241325,0.14216157,139.53,139.49,33.16883679]
[1745231241516,25.816182,139.54,139.49,33.16883679]
[1745231241517,18.64964886,139.54,139.49,33.16883679]
[1745231242339,0.14216157,139.53,139.49,33.16883679]
[1745231243437,18.64964886,139.52,139.49,33.16883679]
[1745231243931,7.30910131,139.53,139.49,26.0]
[1745231244139,0.14216157,139.51,139.46,15.35653185]
[1745231244437,0.14216157,139.51,139.47,26.0]
[1745231244735,0.14216157,139.51,139.46,15.35653185]
[1745231245263,0.14216157,139.51,139.47,26.0]
[1745231245440,0.14216157,139.51,139.47,33.16986392]
[1745231246123,106.61722576,139.52,139.47,33.16986392]
[1745231246441,0.14216157,139.51,139.47,33.16986392]
[1745231249058,0.063,139.56,139.47,33.16986392]
[1745231249215,18.71264886,139.56,139.48,1.6193]
[1745231249932,0.14216157,139.55,139.49,7.16897268]
[1745231250133,0.14216157,139.55,139.52,26.0]
[1745231251643,0.14216157,139.55,139.49,51.09140439]
[1745231251830,0.14216157,139.55,139.52,26.0]
[1745231252148,18.71264886,139.56,139.52,33.16723717]
[1745231252937,18.71264886,139.56,139.52,39.58493717]
[1745231253546,0.14216157,139.55,139.49,26.0]
[1745231254044,7.30831138,139.55,139.49,33.16897268]
[1745231254827,18.64964886,139.54,139.47,7.17000071]
[1745231255024,18.64964886,139.54,139.5,26.0]
[1745231255733,25.81638061,139.54,139.5,26.0]
[1745231256954,0.14216157,139.53,139.46,6.4177]
[1745231257136,18.64964886,139.52,139.47,26.0]
[1745231257944,18.64964886,139.52,139.47,33.1695452]
[1745231258345,0.14216157,139.51,139.47,33.1695452]
[1745231258932,0.14216157,139.51,139.47,26.0]
[1745231259729,0.14216157,139.51,139.47,33.16975832]
[1745231259961,18.64964886,139.5,139.47,33.16975832]
[1745231260127,0.14216157,139.51,139.47,33.16975832]
[1745231260327,18.79181043,139.5,139.47,33.16975832]
[1745231261246,18.79181043,139.5,139.47,26.0]
[1745231261247,18.64964886,139.5,139.47,26.0]
[1745231261548,0.14216157,139.51,139.47,26.0]
[1745231262048,18.64964886,139.5,139.47,26.0]
[1745231266751,18.64964886,139.5,139.47,33.16996633]
[1745231267556,18.64964886,139.5,139.47,26.0]
[1745231267946,18.64964886,139.5,139.47,33.16984519]
[1745231268153,0.14216157,139.51,139.47,33.16984519]
[1745231268957,18.64964886,139.5,139.47,33.16984519]
[1745231269859,0.14216157,139.51,139.47,33.16984519]
[1745231270539,18.64964886,139.52,139.47,33.16984519]
[1745231275059,80.8,139.57,139.48,1.562]
[1745231275283,0.14216157,139.54,139.48,1.562]
[1745231275644,0.14216157,139.55,139.48,1.562]
[1745231275944,18.71264886,139.56,139.48,1.562]
[1745231276366,0.14216157,139.55,139.49,51.09140439]
[1745231279476,18.71264886,139.56,139.49,51.09140439]
[1745231280163,18.71264886,139.56,139.53,26.0]
[1745231280868,0.063,139.56,139.53,26.0]
[1745231281064,0.063,139.56,139.53,27.562]
[1745231281769,0.063,139.56,139.53,26.0]
[1745231282269,0.063,139.56,139.53,33.16667861]
[1745231284278,0.063,139.56,139.5,32.0231]
[1745231285652,18.79181043,139.55,139.51,7.16776766]
[1745231285966,18.79181043,139.55,139.5,33.16833596]
[1745231286851,7.30816877,139.55,139.5,33.16833596]
[1745231287055,18.64964886,139.54,139.46,24.4256371]
[1745231287281,18.64964886,139.54,139.49,26.0]
[1745231288381,18.79181043,139.52,139.47,7.16968948]
[1745231288570,18.79181043,139.52,139.47,33.16968948]
[1745231289557,0.14216157,139.52,139.5,26.0]
[1745231290684,0.14216157,139.51,139.5,26.0]
[1745231291487,0.14216157,139.52,139.5,26.0]
[1745231293683,7.30962581,139.52,139.5,26.0]
[1745231293873,7.30962581,139.52,139.49,26.0]
[1745231295564,7.30962581,139.52,139.46,13.67085395]
[1745231295886,7.30962581,139.52,139.47,26.0]
[1745231296589,7.30962581,139.52,139.45,18.1641]
[1745231296590,18.79181043,139.5,139.45,1.5841]
[1745231296978,18.79181043,139.5,139.45,0.03]
[1745231297166,18.79181043,139.48,139.45,0.03]
[1745231298686,18.79181043,139.46,139.45,0.03]
[1745231302992,7.31267641,139.46,139.45,0.03]
[1745231303173,25.96232527,139.46,139.45,0.03]
[1745231303995,80.8,139.47,139.45,0.03]
[1745231309372,18.64964886,139.51,139.45,0.03]
[1745231309899,0.14216157,139.5,139.45,0.03]
[1745231311086,0.14216157,139.5,139.46,26.0]
[1745231311087,0.14216157,139.48,139.46,26.0]
[1745231311295,0.14216157,139.48,139.45,0.03]
[1745231313303,7.31212811,139.48,139.45,0.03]
[1745231315101,18.79181043,139.48,139.45,0.03]
[1745231315905,80.8,139.49,139.46,26.0]
[1745231316080,80.8,139.49,139.47,26.0]
[1745231317974,18.64964886,139.52,139.47,33.16986976]
[1745231318299,0.14216157,139.51,139.47,26.0]
[1745231320111,0.14216157,139.49,139.47,26.0]
[1745231322610,18.79181043,139.48,139.47,26.0]
[1745231322909,18.79181043,139.48,139.45,0.03]
[1745231326411,18.64964886,139.47,139.45,0.03]
[1745231330804,0.14216157,139.48,139.45,0.03]
[1745231331112,0.14216157,139.46,139.45,0.03]
[1745231333320,25.96232527,139.46,139.45,0.03]
[1745231337310,25.8201637,139.46,139.45,0.03]
[1745231337513,18.64964886,139.46,139.45,0.03]
[1745231337702,18.79181043,139.46,139.45,0.03]
[1745231338104,18.64964886,139.46,139.45,0.03]
[1745231338400,18.79181043,139.46,139.45,0.03]
[1745231340805,25.96232527,139.46,139.45,0.03]
[1745231347334,47.44232527,139.46,139.45,0.03]
[1745231349107,73.44232527,139.46,139.45,1e-08]
[1745231350235,47.44232527,139.46,139.45,1e-08]
[1745231350827,47.3001637,139.46,139.45,1e-08]
[1745231351222,47.44232527,139.46,139.45,1e-08]
[1745231354650,25.96232527,139.46,139.45,1e-08]
[1745231354809,18.64964886,139.46,139.45,1e-08]
[1745231355910,18.79181043,139.46,139.45,1e-08]
[1745231358612,25.96232527,139.46,139.45,1e-08]
[1745231361334,27.56202527,139.46,139.45,1e-08]
[1745231361742,25.96232527,139.46,139.45,1e-08]
[1745231367044,51.96232527,139.46,139.45,1e-08]
[1745231367254,66.27181043,139.44,139.43,0.03]
[1745231367855,44.79181043,139.44,139.43,0.03]
[1745231369455,51.96335374,139.44,139.43,0.03]
[1745231370157,18.79181043,139.43,139.41,0.03]
[1745231371546,25.96438251,139.42,139.41,1e-08]
[1745231376252,18.79181043,139.41,139.39,0.03]
[1745231377337,18.79181043,139.41,139.36,0.03]
[1745231377338,18.64964886,139.37,139.36,0.03]
[1745231377670,18.64964886,139.37,139.31,0.03]
[1745231377671,0.14216157,139.34,139.31,0.03]
[1745231377874,18.79181043,139.34,139.31,0.03]
[1745231378469,18.79181043,139.34,139.31,7.6651]
[1745231378674,44.79181043,139.34,139.31,0.03]
[1745231379267,44.79181043,139.32,139.31,0.03]
[1745231379461,44.79181043,139.32,139.31,1e-08]
[1745231379781,6.41035645,139.36,139.31,1e-08]
[1745231380070,7.17360114,139.4,139.33,26.0]
[1745231380268,87.97360114,139.4,139.33,26.0]
[1745231380441,18.79181043,139.38,139.33,26.0]
[1745231380863,18.79181043,139.36,139.33,26.0]
[1745231381251,18.79181043,139.36,139.31,26.00000001]
[1745231382864,25.96751019,139.36,139.31,26.00000001]
[1745231383163,18.79181043,139.36,139.31,26.00000001]
[1745231383973,18.79181043,139.36,139.31,33.17823318]
[1745231384372,25.96749177,139.36,139.31,26.00000001]
[1745231384567,18.79181043,139.36,139.31,26.00000001]
[1745231384778,18.79181043,139.36,139.31,33.17803515]
[1745231387480,18.79181043,139.36,139.31,51.12362412]
[1745231388862,80.8,139.37,139.31,51.12362412]
[1745231389063,18.64964886,139.4,139.35,26.0]
[1745231389260,0.14216157,139.39,139.35,26.0]
[1745231389760,18.64964886,139.4,139.35,26.0]
[1745231390256,0.14216157,139.39,139.35,26.0]
[1745231391184,80.8,139.41,139.39,1.5406]
[1745231391481,18.64964886,139.42,139.39,1.5406]
[1745231392059,18.64964886,139.43,139.39,1.5406]
[1745231392273,0.14216157,139.42,139.39,1.5406]
[1745231392664,0.14216157,139.44,139.39,1.5406]
[1745231392870,18.79181043,139.44,139.39,1.5406]
[1745231393182,18.64964886,139.44,139.39,1.5406]
[1745231393391,7.31432507,139.43,139.39,1.5406]
[1745231400374,36.57726015,139.45,139.39,1.5406]
[1745231400375,7.31382825,139.44,139.39,1.5406]
[1745231400588,18.64964886,139.45,139.39,7.99716445]
[1745231400790,25.82089787,139.45,139.42,26.0]
[1745231401195,0.14216157,139.44,139.42,26.0]
[1745231401794,7.31394816,139.44,139.4,26.0]
[1745231404398,0.14216157,139.42,139.4,26.0]
[1745231404598,0.14216157,139.42,139.39,27.5406]
[1745231405301,7.31483016,139.42,139.39,27.5406]
[1745231405488,18.79181043,139.41,139.4,26.0]
[1745231405691,18.79181043,139.41,139.39,1.5406]
[1745231406087,0.14216157,139.4,139.38,26.0]
[1745231407681,7.31599522,139.4,139.36,1.5406]
[1745231407977,7.31599522,139.4,139.38,26.0]
[1745231408389,7.17331649,139.41,139.38,26.0]
[1745231408588,0.14216157,139.4,139.38,26.0]
[1745231410694,0.14216157,139.41,139.38,32.4571473]
[1745231411101,0.14216157,139.41,139.38,26.0]
[1745231411811,0.14216157,139.41,139.38,32.45711275]
[1745231412111,0.14216157,139.41,139.38,26.0]
[1745231412708,7.3153797,139.41,139.38,26.0]
[1745231413520,7.3153797,139.41,139.35,6.4253]
[1745231413521,0.14216157,139.39,139.35,6.4253]
[1745231413889,18.79181043,139.37,139.35,32.4253]
[1745231416121,7.31759215,139.37,139.35,32.4253]
[1745231416301,7.31759215,139.37,139.35,26.0]
[1745231416495,7.31759215,139.37,139.33,26.0]
[1745231417314,18.64964886,139.39,139.34,26.0]
[1745231417619,0.14216157,139.38,139.34,26.0]
[1745231418720,0.14216157,139.38,139.34,32.45878595]
[1745231419017,87.97374419,139.4,139.34,32.45878595]
[1745231419209,17.93260371,139.42,139.34,32.45878595]
[1745231419210,0.14216157,139.41,139.35,6.0821]
[1745231419398,18.79181043,139.41,139.35,6.0821]
[1745231419598,25.96499492,139.41,139.35,22.3221]
[1745231420718,25.96499492,139.41,139.39,26.0]
[1745231424333,18.79181043,139.41,139.39,26.0]
[1745231427032,18.79181043,139.42,139.39,32.45665346]
[1745231427332,18.79181043,139.43,139.39,32.45665346]
[1745231427526,18.64964886,139.43,139.39,32.45665346]
[1745231428543,25.82172797,139.43,139.39,26.0]
[1745231428838,0.14216157,139.42,139.39,26.0]
[1745231429837,7.31487514,139.42,139.39,26.0]
[1745231430520,7.31487514,139.42,139.37,1.5412]
[1745231431018,7.31487514,139.42,139.35,48.3221]
[1745231431534,18.64964886,139.41,139.35,22.3221]
[1745231431835,18.79181043,139.39,139.35,48.3221]
[1745231432040,18.64964886,139.39,139.35,54.78059966]
[1745231432616,0.14216157,139.38,139.35,26.0]
[1745231432938,0.14216157,139.38,139.33,1.5412]
[1745231433116,0.14216157,139.38,139.32,6.3559]
[1745231433316,0.14216157,139.36,139.32,6.3559]
[1745231433839,0.14216157,139.36,139.32,12.81574502]
[1745231434636,0.14216157,139.36,139.32,6.3559]
[1745231435821,0.14216157,139.36,139.32,12.81583079]
[1745231437228,18.64964886,139.35,139.31,26.00000001]
[1745231438323,0.14216157,139.34,139.31,26.00000001]
[1745231441039,7.17581479,139.36,139.31,5.74254086]
[1745231441237,0.14216157,139.35,139.31,5.74254086]
[1745231442447,18.64964886,139.37,139.31,26.00000001]
[1745231442628,80.8,139.41,139.33,32.5204]
[1745231442834,18.64964886,139.4,139.33,32.5204]
[1745231443324,0.14216157,139.39,139.33,26.0]
[1745231443523,0.14216157,139.39,139.31,26.00000001]
[1745231444044,25.82325,139.4,139.31,31.74232109]
[1745231444045,0.14216157,139.36,139.31,31.74232109]
[1745231444344,0.14216157,139.36,139.33,26.0]
[1745231444547,0.14216157,139.36,139.31,1e-08]
[1745231444731,0.14216157,139.36,139.31,26.00000001]
[1745231445043,0.14216157,139.36,139.31,1e-08]
[1745231445230,18.79181043,139.34,139.31,1e-08]
[1745231446043,0.14216157,139.32,139.31,1e-08]
[1745231447245,18.79181043,139.32,139.31,1e-08]
[1745231447931,7.31988192,139.32,139.31,1e-08]
[1745231456362,7.1768835,139.34,139.31,1e-08]
[1745231456532,18.64964886,139.35,139.31,1e-08]
[1745231456733,0.14216157,139.34,139.31,1e-08]
[1745231457142,18.64964886,139.35,139.31,1e-08]
[1745231457749,25.82590986,139.35,139.31,1e-08]
[1745231458458,0.14216157,139.34,139.31,1e-08]
[1745231459352,7.17588464,139.36,139.31,1e-08]
[1745231459559,87.97514846,139.37,139.31,34.16870001]
[1745231460259,0.14216157,139.36,139.31,34.16870001]
[1745231460747,0.14216157,139.36,139.32,5.74217628]
[1745231461558,80.8,139.37,139.35,26.0]
[1745231461774,0.063,139.38,139.35,26.0]
[1745231462645,0.063,139.38,139.35,31.74074465]
[1745231463153,0.063,139.38,139.35,26.0]
[1745231464557,0.20516157,139.38,139.34,26.0]
[1745231466163,7.17514529,139.37,139.34,26.0]
[1745231466659,0.14216157,139.36,139.34,26.0]
[1745231467155,7.17514529,139.37,139.34,26.0]
[1745231467357,0.14216157,139.36,139.34,26.0]
[1745231468361,7.31824775,139.36,139.34,26.0]
[1745231469855,7.31824775,139.36,139.32,26.0]
[1745231471059,0.14216157,139.34,139.31,1e-08]
[1745231471356,0.14216157,139.34,139.31,26.00000001]
[1745231471958,0.14216157,139.34,139.31,1e-08]
[1745231473465,7.17720519,139.33,139.31,1e-08]
[1745231476768,7.31908485,139.34,139.31,1e-08]
[1745231476947,0.14216157,139.34,139.31,1e-08]
[1745231477264,7.3189149,139.34,139.31,1e-08]
[1745231478776,0.14216157,139.36,139.32,8.114]
[1745231478973,80.8,139.37,139.32,8.114]
[1745231479847,80.8,139.37,139.35,26.0]
[1745231480044,0.063,139.38,139.35,26.0]
[1745231480674,0.063,139.38,139.35,31.74089353]
[1745231484376,0.063,139.38,139.34,5.74132904]
[1745231486076,0.063,139.38,139.33,21.86159197]
[1745231486260,18.85481043,139.38,139.32,8.114]
[1745231487388,0.14216157,139.35,139.32,8.114]
[1745231487686,18.64964886,139.36,139.32,8.114]
[1745231487687,0.14216157,139.36,139.32,13.85609936]
[1745231488687,18.79181043,139.34,139.31,1e-08]
[1745231489388,18.64964886,139.32,139.31,1e-08]
[1745231490157,31.26650863,139.32,139.31,1e-08]
[1745231512392,25.82943059,139.28,139.27,0.03]
[1745231512692,25.97159216,139.28,139.27,0.03]
[1745231513282,25.97159216,139.28,139.2,34.2024]
[1745231513283,0.14216157,139.25,139.17,0.03]
[1745231513470,0.14216157,139.22,139.19,26.0]
[1745231513791,5.29697785,139.24,139.17,0.03]
[1745231514088,5.29697785,139.24,139.21,32.5729]
[1745231514282,5.29697785,139.24,139.23,26.0]
[1745231514480,0.14216157,139.25,139.23,26.0]
[1745231515195,0.14216157,139.25,139.22,1.0133708]
[1745231515383,0.14216157,139.25,139.22,27.0133708]
[1745231516896,5.27187376,139.24,139.22,27.0133708]
[1745231517280,0.14216157,139.23,139.22,1.0133708]
[1745231517702,5.27187376,139.24,139.22,1.0133708]
[1745231517703,18.64964886,139.24,139.22,1.0133708]
[1745231517899,0.14216157,139.23,139.22,1.0133708]
[1745231518488,25.83060968,139.26,139.22,1.0133708]
[1745231518804,0.14216157,139.25,139.22,1.0133708]
[1745231520579,7.17823558,139.31,139.24,26.0]
[1745231520802,80.8,139.32,139.25,1.6295]
[1745231521191,18.79181043,139.31,139.25,1.6295]
[1745231521395,18.79181043,139.31,139.27,26.0]